fUSD/lending_fUSD_20240719
["ID","MTS","AMOUNT","RATE_DAILY","PERIOD"]
[332646096,1721404242980,-151.0,0.00033264,7]
[332646097,1721404242991,-273.755238,0.00033264,7]
[332646098,1721404243000,-151.0,0.00033264,7]
[332646099,1721404243010,-151.0,0.00033264,7]
[332646100,1721404243021,-98441.6858034,0.00033264,2]
[332646101,1721404243030,-74075.7407873,0.00033264,2]
[332646102,1721404243040,-151.0,0.00033264,7]
[332646103,1721404243049,-151.0,0.00033264,7]
[332646104,1721404243059,-243.115136,0.00033264,7]
[332646105,1721404243069,-243.115136,0.00033264,7]
[332646106,1721404243078,-15811.7011428,0.00033264,2]
[332646107,1721404243087,-11898.043656,0.00033264,2]
[332646108,1721404243097,-1010.8304,0.00033286,2]
[332646109,1721404243106,-500.0,0.00033286,2]
[332646110,1721404243115,-500.0,0.00033287,14]
[332646111,1721404243125,-595.12732732,0.00033287,14]
[332646112,1721404243134,-729.12,0.00033287,14]
[332646113,1721404243143,-500.0,0.00033287,14]
[332646114,1721404243152,-500.0,0.00033287,14]
[332646115,1721404243162,-500.0,0.00033287,14]
[332646116,1721404243171,-480.44461622,0.00033287,14]
[332646117,1721404243181,-500.0,0.00033287,14]
[332646118,1721404243191,-500.0,0.00033287,14]
[332646119,1721404243200,-500.0,0.00033287,14]
[332646120,1721404243210,-500.0,0.00033287,14]
[332646121,1721404243220,-500.0,0.00033287,14]
[332646123,1721404243230,-964.89,0.00033287,14]
[332646124,1721404243240,-500.0,0.00033287,14]
[332646126,1721404243249,-500.0,0.00033287,14]
[332646128,1721404243259,-500.0,0.00033287,14]
[332646129,1721404243272,-500.0,0.00033287,14]
[332646131,1721404243282,-500.0,0.00033287,14]
[332646133,1721404243291,-1397.42,0.00033287,14]
[332646134,1721404243300,-507.4,0.00033287,14]
[332646135,1721404243309,-536.04763038,0.00033287,14]
[332646136,1721404243318,-500.0,0.00033287,14]
[332646137,1721404243327,-500.0,0.00033287,14]
[332646138,1721404243336,-500.0,0.00033287,14]
[332646139,1721404243346,-510.22099996,0.00033287,14]
[332646142,1721404243355,-1273.65,0.00033287,14]
[332646144,1721404243364,-500.0,0.00033287,14]
[332646146,1721404243373,-500.0,0.00033287,14]
[332646147,1721404243382,-511.11570715,0.00033287,14]
[332646148,1721404243391,-500.0,0.00033287,14]
[332646149,1721404243400,-506.71448221,0.00033287,14]
[332646150,1721404243409,-500.0,0.00033287,14]
[332646151,1721404243419,-500.0,0.00033287,14]
[332646152,1721404243428,-500.0,0.00033287,14]
[332646153,1721404243437,-792.24,0.00033287,14]
[332646154,1721404243446,-1123.54,0.00033287,14]
[332646155,1721404243455,-500.0,0.00033287,14]
[332646156,1721404243464,-2002.14,0.00033287,14]
[332646157,1721404243474,-734.79,0.00033287,14]
[332646158,1721404243483,-497.31291766,0.00033287,14]
[332646159,1721404243492,-525.59,0.00033287,14]
[332646160,1721404243501,-500.0,0.00033287,14]
[332646161,1721404243511,-500.0,0.00033287,14]
[332646162,1721404243523,-709.12,0.00033287,14]
[332646163,1721404243532,-500.0,0.00033287,14]
[332646164,1721404243542,-500.0,0.00033287,14]
[332646165,1721404243551,-500.0,0.00033287,14]
[332646166,1721404243560,-500.0,0.00033287,14]
[332646167,1721404243570,-500.0,0.00033287,14]
[332646168,1721404243580,-500.0,0.00033287,14]
[332646169,1721404243589,-1118.74,0.00033287,14]
[332646170,1721404243598,-503.58778061,0.00033287,14]
[332646171,1721404243608,-500.0,0.00033287,14]
[332646172,1721404243618,-1718.26,0.00033287,14]
[332646173,1721404243627,-1130.69,0.00033287,14]
[332646174,1721404243638,-853.38,0.00033287,14]
[332646175,1721404243647,-500.0,0.00033287,14]
[332646176,1721404243656,-500.0,0.00033287,14]
[332646177,1721404243666,-500.0,0.00033287,14]
[332646178,1721404243676,-500.0,0.00033287,14]
[332646179,1721404243686,-500.0,0.00033287,14]
[332646180,1721404243695,-500.0,0.00033287,14]
[332646181,1721404243705,-500.0,0.00033287,14]
[332646182,1721404243714,-500.0,0.00033287,14]
[332646183,1721404243724,-955.27,0.00033287,14]
[332646184,1721404243733,-647.66,0.00033287,14]
[332646185,1721404243742,-500.0,0.00033287,14]
[332646186,1721404243751,-500.0,0.00033287,14]
[332646187,1721404243761,-1107.57,0.00033287,14]
[332646188,1721404243772,-500.0,0.00033287,14]
[332646189,1721404243781,-500.0,0.00033287,14]
[332646190,1721404243791,-500.0,0.00033287,14]
[332646191,1721404243801,-500.0,0.00033287,14]
[332646196,1721404243811,-500.0,0.00033287,14]
[332646198,1721404243820,-276.92940305,0.00033287,14]
[332646200,1721404243830,-500.0,0.00033287,14]
[332646203,1721404243839,-500.0,0.00033287,14]
[332646205,1721404243850,-500.0,0.00033287,14]
[332646207,1721404243860,-546.29,0.00033287,14]
[332646209,1721404243874,-500.0,0.00033287,14]
[332646211,1721404243885,-500.0,0.00033287,14]
[332646213,1721404243894,-500.0,0.00033287,14]
[332646214,1721404243904,-500.0,0.00033287,14]
[332646215,1721404243915,-898.82,0.00033287,14]
[332646216,1721404243925,-500.0,0.00033287,14]
[332646217,1721404243934,-500.0,0.00033287,14]
[332646218,1721404243944,-500.0,0.00033287,14]
[332646219,1721404243954,-500.0,0.00033287,14]
[332646221,1721404243963,-500.0,0.00033287,14]
[332646223,1721404243972,-500.0,0.00033287,14]
[332646225,1721404243982,-500.0,0.00033287,14]
[332646227,1721404243991,-500.0,0.00033287,14]
[332646229,1721404244000,-500.0,0.00033287,14]
[332646231,1721404244010,-510.4154924,0.00033287,14]
[332646232,1721404244023,-179.60311083,0.00033287,14]
[332646233,1721404244033,-500.0,0.00033287,14]
[332646234,1721404244042,-451.14593018,0.00033287,14]
[332646235,1721404244055,-500.0,0.00033287,14]
[332646236,1721404244064,-500.0,0.00033287,14]
[332646237,1721404244074,-500.0,0.00033287,14]
[332646238,1721404244084,-214.97550521,0.00033287,14]
[332646239,1721404244093,-500.0,0.00033287,14]
[332646240,1721404244103,-500.0,0.00033287,14]
[332646241,1721404244112,-500.0,0.00033287,14]
[332646242,1721404244122,-593.12,0.00033287,14]
[332646243,1721404244131,-500.0,0.00033287,14]
[332646244,1721404244141,-500.0,0.00033287,14]
[332646245,1721404244151,-500.0,0.00033287,14]
[332646246,1721404244161,-500.0,0.00033287,14]
[332646247,1721404244171,-1267.66,0.00033287,14]
[332646248,1721404244184,-1004.15,0.00033287,14]
[332646249,1721404244194,-500.0,0.00033287,14]
[332646250,1721404244204,-500.0,0.00033287,14]
[332646251,1721404244213,-500.0,0.00033287,14]
[332646252,1721404244222,-500.0,0.00033287,14]
[332646253,1721404244232,-500.0,0.00033287,14]
[332646254,1721404244244,-500.0,0.00033287,14]
[332646255,1721404244254,-500.0,0.00033287,14]
[332646256,1721404244265,-500.0,0.00033287,14]
[332646257,1721404244275,-350.22960899,0.00033287,14]
[332646258,1721404244284,-500.0,0.00033287,14]
[332646259,1721404244295,-243.46562371,0.00033287,14]
[332646260,1721404244306,-500.0,0.00033287,14]
[332646261,1721404244317,-500.0,0.00033287,14]
[332646262,1721404244327,-500.0,0.00033287,14]
[332646263,1721404244338,-500.0,0.00033287,14]
[332646264,1721404244348,-500.0,0.00033287,14]
[332646265,1721404244358,-500.0,0.00033287,14]
[332646266,1721404244370,-580.51025353,0.00033287,14]
[332646267,1721404244379,-282.3045351,0.00033287,14]
[332646268,1721404244392,-500.0,0.00033287,14]
[332646269,1721404244402,-500.0,0.00033287,14]
[332646270,1721404244412,-500.0,0.00033287,14]
[332646271,1721404244423,-524.96,0.00033287,14]
[332646272,1721404244433,-672.0,0.00033287,14]
[332646273,1721404244444,-500.0,0.00033287,14]
[332646274,1721404244454,-500.0,0.00033287,14]
[332646275,1721404244464,-500.0,0.00033287,14]
[332646276,1721404244476,-1604.34,0.00033287,14]
[332646277,1721404244485,-500.0,0.00033287,14]
[332646278,1721404244495,-500.0,0.00033287,14]
[332646279,1721404244504,-2684.0,0.00033287,14]
[332646280,1721404244516,-500.0,0.00033287,14]
[332646281,1721404244526,-500.0,0.00033287,14]
[332646282,1721404244535,-500.0,0.00033287,14]
[332646283,1721404244545,-1411.78,0.00033287,14]
[332646284,1721404244555,-500.0,0.00033287,14]
[332646285,1721404244564,-518.78672379,0.00033287,14]
[332646286,1721404244573,-500.0,0.00033287,14]
[332646287,1721404244582,-176.97167598,0.00033287,14]
[332646288,1721404244592,-500.0,0.00033287,14]
[332646289,1721404244601,-858.0,0.00033287,14]
[332646290,1721404244610,-500.0,0.00033287,14]
[332646291,1721404244619,-158.08240964,0.00033287,2]
[332646292,1721404244628,-500.0,0.00033287,14]
[332646293,1721404244638,-1259.18,0.00033287,14]
[332646294,1721404244648,-500.0,0.00033287,14]
[332646295,1721404244658,-500.0,0.00033287,14]
[332646296,1721404244667,-500.0,0.00033287,14]
[332646297,1721404244678,-500.0,0.00033287,14]
[332646298,1721404244687,-500.0,0.00033287,14]
[332646299,1721404244697,-500.0,0.00033287,14]
[332646300,1721404244706,-500.0,0.00033287,14]
[332646301,1721404244716,-928.26,0.00033287,14]
[332646302,1721404244727,-781.23,0.00033287,14]
[332646303,1721404244737,-500.0,0.00033287,14]
[332646304,1721404244746,-860.86,0.00033287,14]
[332646305,1721404244757,-500.0,0.00033287,14]
[332646306,1721404244770,-756.27,0.00033287,14]
[332646307,1721404244782,-500.0,0.00033287,14]
[332646308,1721404244794,-397.84795479,0.00033287,14]
[332646309,1721404244804,-840.95,0.00033287,14]
[332646310,1721404244815,-579.58,0.00033287,14]
[332646311,1721404244826,-3829.75,0.00033287,14]
[332646312,1721404244837,-500.0,0.00033287,14]
[332646313,1721404244848,-500.0,0.00033287,14]
[332646314,1721404244859,-992.53,0.00033287,14]
[332646315,1721404244872,-512.29,0.00033287,14]
[332646316,1721404244884,-554.18820752,0.00033287,14]
[332646317,1721404244894,-500.0,0.00033287,14]
[332646318,1721404244907,-500.0,0.00033287,14]
[332646319,1721404244918,-500.0,0.00033287,14]
[332646320,1721404244928,-1957.81,0.00033287,14]
[332646321,1721404244940,-500.0,0.00033287,14]
[332646322,1721404244951,-1687.45,0.00033287,14]
[332646323,1721404244963,-500.0,0.00033287,14]
[332646324,1721404244975,-500.0,0.00033287,14]
[332646325,1721404244985,-554.18,0.00033287,14]
[332646326,1721404244996,-500.0,0.00033287,14]
[332646327,1721404245007,-500.0,0.00033287,14]
[332646328,1721404245019,-2139.51,0.00033287,14]
[332646329,1721404245031,-500.0,0.00033287,14]
[332646330,1721404245041,-3678.46,0.00033287,14]
[332646331,1721404245051,-500.0,0.00033287,14]
[332646332,1721404245060,-1102.24,0.00033287,14]
[332646333,1721404245072,-500.0,0.00033287,14]
[332646334,1721404245082,-500.0,0.00033287,14]
[332646335,1721404245098,-500.0,0.00033287,14]
[332646336,1721404245108,-2659.19,0.00033287,14]
[332646337,1721404245119,-500.0,0.00033287,14]
[332646338,1721404245131,-500.0,0.00033287,14]
[332646339,1721404245143,-500.0,0.00033287,14]
[332646340,1721404245156,-500.0,0.00033287,14]
[332646341,1721404245170,-748.36,0.00033287,14]
[332646342,1721404245182,-500.0,0.00033287,14]
[332646343,1721404245194,-500.0,0.00033287,14]
[332646344,1721404245207,-500.0,0.00033287,14]
[332646345,1721404245218,-500.0,0.00033287,14]
[332646346,1721404245228,-500.0,0.00033287,14]
[332646347,1721404245238,-500.0,0.00033287,14]
[332646348,1721404245249,-1342.76,0.00033287,14]
[332646349,1721404245261,-1446.86,0.00033287,14]
[332646350,1721404245274,-500.0,0.00033287,14]
[332646351,1721404245285,-2318.73,0.00033287,14]
[332646352,1721404245296,-500.0,0.00033287,14]
[332646353,1721404245307,-500.0,0.00033287,14]
[332646354,1721404245318,-500.0,0.00033287,14]
[332646355,1721404245330,-500.0,0.00033287,14]
[332646356,1721404245341,-500.0,0.00033287,14]
[332646357,1721404245352,-968.02,0.00033287,14]
[332646358,1721404245364,-500.0,0.00033287,14]
[332646359,1721404245376,-500.0,0.00033287,14]
[332646360,1721404245387,-500.0,0.00033287,14]
[332646361,1721404245399,-1215.42,0.00033287,14]
[332646362,1721404245410,-500.0,0.00033287,14]
[332646363,1721404245421,-1189.06,0.00033287,14]
[332646364,1721404245432,-2711.43,0.00033287,14]
[332646365,1721404245443,-500.0,0.00033287,14]
[332646366,1721404245454,-185.8204001,0.00033287,14]
[332646367,1721404245465,-500.0,0.00033287,14]
[332646368,1721404245477,-500.0,0.00033287,14]
[332646369,1721404245489,-500.0,0.00033287,14]
[332646370,1721404245500,-717.63,0.00033287,14]
[332646371,1721404245511,-591.06,0.00033287,14]
[332646372,1721404245524,-952.61,0.00033287,14]
[332646373,1721404245534,-500.0,0.00033287,14]
[332646374,1721404245544,-2016.29,0.00033287,14]
[332646375,1721404245556,-500.0,0.00033287,14]
[332646376,1721404245567,-56.46657814,0.00033287,14]
[332646377,1721404245609,-443.53342186,0.00033287,14]
[332646378,1721404245620,-837.41,0.00033287,14]
[332646379,1721404245632,-500.0,0.00033287,14]
[332646380,1721404245643,-517.97,0.00033287,14]
[332646381,1721404245655,-1189.37,0.00033287,14]
[332646382,1721404245667,-1315.92,0.00033287,14]
[332646383,1721404245679,-500.0,0.00033287,14]
[332646384,1721404245690,-787.01,0.00033287,14]
[332646385,1721404245702,-500.0,0.00033287,14]
[332646386,1721404245713,-853.41,0.00033287,14]
[332646387,1721404245726,-500.0,0.00033287,14]
[332646388,1721404245739,-618.57,0.00033287,14]
[332646389,1721404245752,-922.88,0.00033287,14]
[332646390,1721404245764,-279.78330525,0.00033287,14]
[332646391,1721404245776,-500.0,0.00033287,14]
[332646392,1721404245786,-500.0,0.00033287,14]
[332646393,1721404245797,-1426.93,0.00033287,14]
[332646394,1721404245808,-500.0,0.00033287,14]
[332646395,1721404245819,-500.0,0.00033287,14]
[332646396,1721404245831,-2121.44,0.00033287,14]
[332646397,1721404245842,-1492.61,0.00033287,14]
[332646398,1721404245853,-2060.02,0.00033287,14]
[332646399,1721404245867,-500.0,0.00033287,14]
[332646400,1721404245881,-1270.35,0.00033287,14]
[332646401,1721404245892,-501.20889784,0.00033287,14]
[332646402,1721404245903,-1782.26,0.00033287,14]
[332646403,1721404245915,-500.0,0.00033287,14]
[332646404,1721404245925,-3015.1,0.00033287,14]
[332646405,1721404245935,-500.0,0.00033287,14]
[332646406,1721404245950,-500.0,0.00033287,14]
[332646407,1721404245968,-1363.34,0.00033287,14]
[332646408,1721404245980,-500.0,0.00033287,14]
[332646409,1721404245992,-942.62,0.00033287,14]
[332646410,1721404246004,-1188.43,0.00033287,14]
[332646411,1721404246016,-500.0,0.00033287,14]
[332646412,1721404246027,-500.0,0.00033287,14]
[332646413,1721404246037,-500.0,0.00033287,14]
[332646414,1721404246047,-500.0,0.00033287,14]
[332646415,1721404246057,-2312.04,0.00033287,14]
[332646416,1721404246068,-500.0,0.00033287,14]
[332646417,1721404246078,-768.63,0.00033287,14]
[332646418,1721404246089,-500.0,0.00033287,14]
[332646420,1721404246104,-500.0,0.00033287,14]
[332646422,1721404246114,-500.0,0.00033287,14]
[332646423,1721404246125,-569.91,0.00033287,14]
[332646425,1721404246135,-500.0,0.00033287,14]
[332646427,1721404246146,-500.0,0.00033287,14]
[332646428,1721404246156,-500.0,0.00033287,14]
[332646430,1721404246166,-500.0,0.00033287,14]
[332646432,1721404246176,-1535.53,0.00033287,14]
[332646434,1721404246187,-500.0,0.00033287,14]
[332646436,1721404246197,-1425.08,0.00033287,14]
[332646437,1721404246208,-785.93,0.00033287,14]
[332646439,1721404246219,-728.38,0.00033287,14]
[332646441,1721404246230,-3290.05,0.00033287,14]
[332646443,1721404246241,-500.0,0.00033287,14]
[332646444,1721404246251,-829.12,0.00033287,14]
[332646446,1721404246262,-500.0,0.00033287,14]
[332646448,1721404246274,-500.0,0.00033287,14]
[332646449,1721404246284,-500.0,0.00033287,14]
[332646451,1721404246295,-256.15,0.00033287,14]
[332646453,1721404246305,-500.0,0.00033287,14]
[332646454,1721404246316,-918.05,0.00033287,14]
[332646455,1721404246327,-1257.94,0.00033287,14]
[332646456,1721404246338,-2459.5,0.00033287,14]
[332646457,1721404246349,-500.00446953,0.00033287,14]
[332646458,1721404246359,-503.34219601,0.00033287,14]
[332646459,1721404246370,-500.0,0.00033287,14]
[332646460,1721404246380,-500.0,0.00033287,14]
[332646461,1721404246391,-500.0,0.00033287,14]
[332646462,1721404246401,-365.29349153,0.00033287,14]
[332646463,1721404246412,-798.81,0.00033287,14]
[332646464,1721404246422,-500.0,0.00033287,14]
[332646465,1721404246432,-500.0,0.00033287,14]
[332646466,1721404246443,-742.79,0.00033287,14]
[332646467,1721404246454,-500.0,0.00033287,14]
[332646468,1721404246464,-501.38266698,0.00033287,14]
[332646469,1721404246474,-500.0,0.00033287,14]
[332646470,1721404246485,-500.0,0.00033287,14]
[332646471,1721404246495,-1058.6,0.00033287,14]
[332646472,1721404246506,-559.06,0.00033287,14]
[332646473,1721404246517,-500.0,0.00033287,14]
[332646474,1721404246527,-611.40264397,0.00033287,14]
[332646475,1721404246538,-500.0,0.00033287,14]
[332646476,1721404246549,-983.06,0.00033287,14]
[332646477,1721404246560,-500.0,0.00033287,14]
[332646478,1721404246572,-1339.89,0.00033287,14]
[332646479,1721404246583,-501.72,0.00033287,14]
[332646480,1721404246595,-532.01,0.00033287,14]
[332646481,1721404246606,-984.21,0.00033287,14]
[332646482,1721404246619,-708.71,0.00033287,14]
[332646483,1721404246631,-4177.7,0.00033287,14]
[332646484,1721404246641,-1412.03,0.00033287,14]
[332646485,1721404246652,-1608.43,0.00033287,14]
[332646486,1721404246663,-500.0,0.00033287,14]
[332646487,1721404246675,-500.0,0.00033287,14]
[332646488,1721404246686,-620.3,0.00033287,14]
[332646489,1721404246697,-667.6,0.00033287,14]
[332646490,1721404246708,-541.83,0.00033287,14]
[332646491,1721404246719,-500.0,0.00033287,14]
[332646492,1721404246730,-1153.89,0.00033287,14]
[332646493,1721404246741,-500.0,0.00033287,14]
[332646494,1721404246751,-500.0,0.00033287,14]
[332646495,1721404246762,-1682.53588726,0.00033287,14]
[332646496,1721404246784,-463.62,0.00033287,14]
[332646497,1721404246798,-2075.56411274,0.00033287,14]
[332646498,1721404246809,-500.0,0.00033287,14]
[332646499,1721404246819,-500.0,0.00033287,14]
[332646500,1721404246830,-500.0,0.00033287,14]
[332646501,1721404246841,-500.0,0.00033287,14]
[332646502,1721404246852,-500.0,0.00033287,14]
[332646503,1721404246863,-990.52,0.00033287,14]
[332646504,1721404246878,-2019.59,0.00033287,14]
[332646505,1721404246889,-500.0,0.00033287,14]
[332646506,1721404246900,-500.0,0.00033287,14]
[332646507,1721404246911,-1099.48,0.00033287,14]
[332646508,1721404246924,-500.0,0.00033287,14]
[332646509,1721404246935,-500.0,0.00033287,14]
[332646510,1721404246948,-500.0,0.00033287,14]
[332646511,1721404246959,-1257.09,0.00033287,14]
[332646512,1721404246971,-500.0,0.00033287,14]
[332646513,1721404246984,-547.27,0.00033287,14]
[332646514,1721404246995,-500.0,0.00033287,14]
[332646515,1721404247008,-554.60537295,0.00033287,14]
[332646516,1721404247022,-500.0,0.00033287,14]
[332646519,1721404247035,-2716.85,0.00033287,14]
[332646520,1721404247889,-500.0,0.00033287,14]
[332646521,1721404247913,-1599.77,0.00033287,14]
[332646522,1721404247931,-500.0,0.00033287,14]
[332646523,1721404247942,-719.64,0.00033287,14]
[332646524,1721404247952,-500.0,0.00033287,14]
[332646525,1721404247962,-500.0,0.00033287,14]
[332646526,1721404247972,-500.0,0.00033287,14]
[332646527,1721404247982,-500.0,0.00033287,14]
[332646528,1721404247992,-1434.26,0.00033287,14]
[332646529,1721404248002,-857.73,0.00033287,14]
[332646530,1721404248012,-1986.48,0.00033287,14]
[332646531,1721404248023,-938.89,0.00033287,14]
[332646532,1721404248033,-500.0,0.00033287,14]
[332646533,1721404248043,-500.0,0.00033287,14]
[332646534,1721404248052,-500.0,0.00033287,14]
[332646535,1721404248062,-501.14516823,0.00033287,14]
[332646536,1721404248071,-700.01,0.00033287,14]
[332646537,1721404248081,-500.0,0.00033287,14]
[332646538,1721404248091,-500.0,0.00033287,14]
[332646539,1721404248100,-1795.89,0.00033287,14]
[332646540,1721404248109,-739.71,0.00033287,14]
[332646541,1721404248118,-500.0,0.00033287,14]
[332646542,1721404248128,-500.0,0.00033287,14]
[332646543,1721404248137,-925.24,0.00033287,14]
[332646544,1721404248146,-2641.15,0.00033287,14]
[332646545,1721404248156,-856.94,0.00033287,14]
[332646546,1721404248165,-690.03,0.00033287,14]
[332646547,1721404248175,-500.0,0.00033287,14]
[332646548,1721404248185,-1022.79,0.00033287,14]
[332646549,1721404248194,-1025.98,0.00033287,14]
[332646550,1721404248204,-500.0,0.00033287,14]
[332646551,1721404248214,-712.85,0.00033287,14]
[332646552,1721404248224,-555.68208153,0.00033287,14]
[332646553,1721404248234,-2660.99,0.00033287,14]
[332646554,1721404248244,-500.0,0.00033287,14]
[332646555,1721404248254,-644.42,0.00033287,14]
[332646556,1721404248264,-847.33,0.00033287,14]
[332646557,1721404248275,-2189.59,0.00033287,14]
[332646558,1721404248285,-500.0,0.00033287,14]
[332646559,1721404248295,-500.0,0.00033287,14]
[332646560,1721404248306,-748.24,0.00033287,14]
[332646561,1721404248316,-500.0,0.00033287,14]
[332646562,1721404248327,-500.0,0.00033287,14]
[332646563,1721404248336,-312.52512004,0.00033287,14]
[332646564,1721404248346,-500.0,0.00033287,14]
[332646565,1721404248355,-513.59141351,0.00033287,14]
[332646566,1721404248367,-500.0,0.00033287,14]
[332646567,1721404248378,-792.94,0.00033287,14]
[332646568,1721404248387,-650.68,0.00033287,14]
[332646569,1721404248397,-1669.97,0.00033287,14]
[332646570,1721404248407,-500.0,0.00033287,14]
[332646571,1721404248416,-500.0,0.00033287,14]
[332646572,1721404248426,-3200.91,0.00033287,14]
[332646573,1721404248435,-623.93148512,0.00033287,14]
[332646574,1721404248445,-576.05,0.00033287,14]
[332646575,1721404248455,-1188.46,0.00033287,14]
[332646576,1721404248464,-524.24,0.00033287,14]
[332646577,1721404248474,-2101.33,0.00033287,14]
[332646578,1721404248484,-500.0,0.00033287,14]
[332646579,1721404248494,-3620.33,0.00033287,14]
[332646580,1721404248503,-724.14,0.00033287,14]
[332646581,1721404248514,-500.0,0.00033287,14]
[332646582,1721404248526,-500.0,0.00033287,14]
[332646583,1721404248536,-1606.46,0.00033287,14]
[332646584,1721404248546,-2849.42,0.00033287,14]
[332646585,1721404248556,-500.0,0.00033287,14]
[332646586,1721404248565,-500.0,0.00033287,14]
[332646587,1721404248576,-735.51,0.00033287,14]
[332646588,1721404248586,-500.0,0.00033287,14]
[332646589,1721404248597,-2219.39,0.00033287,14]
[332646590,1721404248607,-1136.35,0.00033287,14]
[332646591,1721404248618,-500.0,0.00033287,14]
[332646592,1721404248628,-3478.95,0.00033287,14]
[332646593,1721404248638,-1471.57,0.00033287,14]
[332646594,1721404248648,-500.0,0.00033287,14]
[332646595,1721404248659,-500.0,0.00033287,14]
[332646596,1721404248669,-500.0,0.00033287,14]
[332646597,1721404248679,-536.55,0.00033287,14]
[332646598,1721404248689,-619.21,0.00033287,14]
[332646599,1721404248700,-3703.31,0.00033287,14]
[332646600,1721404248710,-1121.26,0.00033287,14]
[332646601,1721404248721,-552.02,0.00033287,14]
[332646602,1721404248731,-293.7379587,0.00033287,14]
[332646603,1721404249202,-206.2620413,0.00033287,14]
[332646604,1721404249214,-500.0,0.00033287,14]
[332646605,1721404249226,-1380.4,0.00033287,14]
[332646606,1721404249238,-500.0,0.00033287,14]
[332646607,1721404249249,-500.0,0.00033287,14]
[332646608,1721404249260,-1550.95,0.00033287,14]
[332646609,1721404249279,-99.65014901,0.00033287,14]
[332646610,1721404249292,-400.34985099,0.00033287,14]
[332646611,1721404249303,-500.0,0.00033287,14]
[332646612,1721404249314,-781.26631215,0.00033287,14]
[332646613,1721404249336,-779.67368785,0.00033287,14]
[332646614,1721404249348,-500.0,0.00033287,14]
[332646615,1721404249359,-522.62,0.00033287,14]
[332646616,1721404249370,-500.0,0.00033287,14]
[332646617,1721404249381,-500.0,0.00033287,14]
[332646618,1721404249392,-533.79,0.00033287,14]
[332646619,1721404249404,-1049.36,0.00033287,14]
[332646620,1721404249415,-500.0,0.00033287,14]
[332646621,1721404249426,-500.0,0.00033287,14]
[332646622,1721404249437,-1990.65,0.00033287,14]
[332646623,1721404249449,-1111.98,0.00033287,14]
[332646624,1721404249460,-1730.51,0.00033287,14]
[332646625,1721404249472,-551.36,0.00033287,14]
[332646626,1721404249483,-4326.01,0.00033287,14]
[332646627,1721404249494,-588.86,0.00033287,14]
[332646628,1721404249506,-1572.72,0.00033287,14]
[332646629,1721404249519,-500.0,0.00033287,14]
[332646630,1721404249530,-500.0,0.00033287,14]
[332646631,1721404249540,-760.92,0.00033287,14]
[332646632,1721404249550,-1936.7,0.00033287,14]
[332646633,1721404249560,-500.0,0.00033287,14]
[332646634,1721404249570,-2053.54,0.00033287,14]
[332646635,1721404249580,-500.0,0.00033287,14]
[332646636,1721404249590,-2486.51,0.00033287,14]
[332646637,1721404249600,-4288.83,0.00033287,14]
[332646638,1721404249611,-500.0,0.00033287,14]
[332646639,1721404249622,-500.0,0.00033287,14]
[332646640,1721404249633,-2391.82,0.00033287,14]